[Event "FIDE WCCC Open-08 2024"]
[Site "Montesilvano"]
[Date "2024.11.26"]
[Round "11.1"]
[White "Divith Reddy Adulla"]
[Black "Li, Aiden Linyuan"]
[Result "1-0"]
[ECO "B15"]
[WhiteElo "1784"]
[BlackElo "1877"]
[Annotator "NA RC"]
[PlyCount "117"]
[EventDate "2024.11.18"]
[EventType "swiss"]
[EventCountry "ITA"]
[SourceTitle "playchess.com"]
[Source "ChessBase"]
[SourceQuality "1"]
[TimeControl "5400+30"]

1. e4 {[%emt 0:00:01]} c6 {[%emt 0:00:01]} 2. d4 {[%emt 0:00:11]} d5 {[%emt 0:00:05]} 3. Nc3 {[%emt 0:00:05]} dxe4 {[%emt 0:00:04]} 4. Nxe4 {[%emt 0:00:10]} Nf6 {[%emt 0:00:04]} 5. Nxf6+ {[%emt 0:00:11]} exf6 {[%emt 0:00:09]} 6. Bc4 {[%emt 0:00:11]} Bd6 {[%emt 0:01:42]} 7. Ne2 {[%emt 0:00:14]} O-O {[%emt 0:00:08]} 8. O-O {[%emt 0:00:04]} Qc7 {[%emt 0:01:13]} 9. Ng3 {[%emt 0:02:00]} Be6 {[%emt 0:03:33]} 10. Bd3 {[%emt 0:02:34]} g6 {[%emt 0:04:16]} 11. b3 {[%emt 0:04:44]} c5 {[%emt 0:06:32]} 12. Ne4 {[%emt 0:06:45]} Nd7 {[%emt 0:02:41]} 13. Nxd6 {[%emt 0:02:23]} Qxd6 {[%emt 0:00:12]} 14. dxc5 {[%emt 0:06:03]} Nxc5 {[%emt 0:00:32]} 15. Ba3 {[%emt 0:01:17]} Qc6 {[%emt 0:03:21]} 16. Be2 {[%emt 0:12:35]} Rfd8 {[%emt 0:01:31]} 17. Qc1 {[%emt 0:00:13]} Bd5 {[%emt 0:00:29]} 18. f3 {[%emt 0:00:26]} Re8 {[%emt 0:07:26]} 19. c4 {[%emt 0:01:54]} Qb6 {[%emt 0:00:24]} 20. Qd1 {[%emt 0:09:44]} Nxb3+ {[%emt 0:01:52]} 21. c5 {[%emt 0:00:44]} Nxc5 {[%emt 0:00:47]} 22. Rb1 {[%emt 0:01:35]} Qa5 {[%emt 0:02:31]} 23. Bb4 {[%emt 0:00:53]} Qxa2 {[%emt 0:00:10]} 24. Bb5 {[%emt 0:01:35]} Bb3 {[%emt 0:13:30]} 25. Qd4 {[%emt 0:04:23]} Na4 {[%emt 0:22:55]} 26. Bxe8 {[%emt 0:01:01]} Rxe8 {[%emt 0:00:10]} 27. Qxf6 {[%emt 0:00:33]} Bc2 {[%emt 0:00:33]} 28. Rbe1 {[%emt 0:01:41]} Rc8 {[%emt 0:02:43]} 29. Re7 {[%emt 0:01:26]} Rf8 {[%emt 0:04:54]} 30. Rfe1 {[%emt 0:00:48]} Qb2 {[%emt 0:04:29]} 31. Qxb2 {[%emt 0:00:14]} Nxb2 {[%emt 0:17:03]} 32. Re8 {[%emt 0:00:13]} Rxe8 {[%emt 0:00:00]} 33. Rxe8+ {[%emt 0:00:06]} Kg7 {[%emt 0:00:00]} 34. Bc3+ {[%emt 0:00:05]} f6 {[%emt 0:00:00]} 35. Bxb2 {[%emt 0:00:05]} Kf7 {[%emt 0:00:00]} 36. Rb8 {[%emt 0:00:08]} a5 {[%emt 0:00:00]} 37. Rxb7+ {[%emt 0:00:04]} Ke6 {[%emt 0:00:00]} 38. Rxh7 {[%emt 0:00:18]} a4 {[%emt 0:00:00]} 39. Rc7 {[%emt 0:00:09]} Bb3 {[%emt 0:00:00]} 40. Rc6+ {[%emt 0:00:05]} Kd5 {[%emt 0:00:00]} 41. Rxf6 {[%emt 0:00:05]} Bc2 {[%emt 0:00:00]} 42. h4 {[%emt 0:00:10]} Kc4 {[%emt 0:00:00]} 43. g4 {[%emt 0:00:10]} Kb3 {[%emt 0:00:00]} 44. Bc1 {[%emt 0:00:03]} Bd3 {[%emt 0:00:00]} 45. Rb6+ {[%emt 0:00:12]} Kc2 {[%emt 0:00:00]} 46. Ba3 {[%emt 0:00:04]} Kd2 {[%emt 0:00:00]} 47. Rd6 {[%emt 0:00:11]} Kc3 {[%emt 0:00:00]} 48. Rxd3+ {[%emt 0:00:07]} Kxd3 {[%emt 0:00:00]} 49. h5 {[%emt 0:00:04]} Kc3 {[%emt 0:00:00]} 50. hxg6 {[%emt 0:00:09]} Kb3 {[%emt 0:00:00]} 51. Be7 {[%emt 0:00:04]} a3 {[%emt 0:00:00]} 52. g7 {[%emt 0:00:04]} a2 {[%emt 0:00:00]} 53. g8=Q+ {[%emt 0:00:07]} Kb2 {[%emt 0:00:00]} 54. Bf6+ {[%emt 0:00:07]} Ka3 {[%emt 0:00:00]} 55. Qb8 {[%emt 0:00:22]} a1=N {[%emt 0:00:00]} 56. Bxa1 {[%emt 0:00:27]} Ka4 {[%emt 0:00:00]} 57. Bc3 {[%emt 0:00:04]} Ka3 {[%emt 0:00:00]} 58. Qb4+ {[%emt 0:00:04]} Ka2 {[%emt 0:00:00]} 59. Qb2# {[%emt 0:00:05]} 1-0

[Event "FIDE WCCC Open-08 2024"]
[Site "Montesilvano"]
[Date "2024.11.26"]
[Round "11.2"]
[White "Guo, Philipp Ziming"]
[Black "Elemes, Nurmukhamed"]
[Result "1/2-1/2"]
[ECO "E15"]
[WhiteElo "2139"]
[BlackElo "1735"]
[Annotator "NA RC"]
[PlyCount "82"]
[EventDate "2024.11.18"]
[EventType "swiss"]
[EventCountry "ITA"]
[SourceTitle "playchess.com"]
[Source "ChessBase"]
[SourceQuality "1"]
[TimeControl "5400+30"]

1. d4 {[%emt 0:00:30]} Nf6 {[%emt 0:00:07]} 2. c4 {[%emt 0:00:00]} e6 {[%emt 0:00:05]} 3. Nf3 {[%emt 0:00:00]} b6 {[%emt 0:00:06]} 4. g3 {[%emt 0:00:00]} Ba6 {[%emt 0:00:04]} 5. Qc2 {[%emt 0:00:15]} Bb7 {[%emt 0:00:08]} 6. Bg2 {[%emt 0:00:07]} c5 {[%emt 0:00:05]} 7. O-O {[%emt 0:01:05]} cxd4 {[%emt 0:00:06]} 8. Nxd4 {[%emt 0:00:12]} Bxg2 {[%emt 0:00:06]} 9. Kxg2 {[%emt 0:00:03]} Qc8 {[%emt 0:00:07]} 10. Bg5 {[%emt 0:03:32]} Qb7+ {[%emt 0:03:26]} 11. f3 {[%emt 0:02:00]} Be7 {[%emt 0:02:20]} 12. e4 {[%emt 0:02:22]} Nc6 {[%emt 0:02:01]} 13. Nb5 {[%emt 0:01:28]} O-O {[%emt 0:01:46]} 14. Qd2 {[%emt 0:03:38]} a6 {[%emt 0:02:08]} 15. N5c3 {[%emt 0:12:23]} b5 {[%emt 0:03:33]} 16. cxb5 {[%emt 0:00:34]} axb5 {[%emt 0:00:07]} 17. Ne2 {[%emt 0:00:10]} d5 {[%emt 0:01:22]} 18. exd5 {[%emt 0:01:05]} Nxd5 {[%emt 0:00:12]} 19. Nbc3 {[%emt 0:00:31]} Rfd8 {[%emt 0:00:39]} 20. Bxe7 {[%emt 0:08:10]} Ncxe7 {[%emt 0:00:13]} 21. Nxd5 {[%emt 0:00:19]} Rxd5 {[%emt 0:00:23]} 22. Qe1 {[%emt 0:03:23]} Rad8 {[%emt 0:03:20]} 23. Nc3 {[%emt 0:01:02]} Rd2+ {[%emt 0:02:37]} 24. Rf2 {[%emt 0:00:07]} Qd7 {[%emt 0:00:55]} 25. Rc1 {[%emt 0:04:09]} Rxf2+ {[%emt 0:03:09]} 26. Qxf2 {[%emt 0:00:10]} Nd5 {[%emt 0:02:37]} 27. a3 {[%emt 0:11:42]} f5 {[%emt 0:02:51]} 28. Qe2 {[%emt 0:04:59]} Nxc3 {[%emt 0:05:11]} 29. Rxc3 {[%emt 0:00:09]} Qd5 {[%emt 0:02:33]} 30. Re3 {[%emt 0:01:38]} Kf7 {[%emt 0:01:29]} 31. Re5 {[%emt 0:00:30]} Qc4 {[%emt 0:02:07]} 32. Qxc4 {[%emt 0:07:36]} bxc4 {[%emt 0:00:08]} 33. Re2 {[%emt 0:00:02]} g5 {[%emt 0:00:52]} 34. Kf2 {[%emt 0:01:14]} Kf6 {[%emt 0:01:35]} 35. Rc2 {[%emt 0:01:26]} e5 {[%emt 0:03:40]} 36. Ke2 {[%emt 0:03:26]} Rb8 {[%emt 0:01:36]} 37. a4 {[%emt 0:00:50]} e4 {[%emt 0:00:50]} 38. fxe4 {[%emt 0:00:16]} fxe4 {[%emt 0:00:06]} 39. a5 {[%emt 0:02:01]} Ke5 {[%emt 0:01:05]} 40. Rxc4 {[%emt 0:03:19]} Rxb2+ {[%emt 0:00:08]} 41. Ke3 {[%emt 0:00:02]} Rb3+ {[%emt 0:55:07]} 1/2-1/2

[Event "FIDE WCCC Open-08 2024"]
[Site "Montesilvano"]
[Date "2024.11.26"]
[Round "11.3"]
[White "Rajabov, Abdurahmon"]
[Black "Sattwik Swain"]
[Result "0-1"]
[ECO "C90"]
[WhiteElo "1515"]
[BlackElo "1787"]
[Annotator "NA RC"]
[PlyCount "62"]
[EventDate "2024.11.18"]
[EventType "swiss"]
[EventCountry "ITA"]
[SourceTitle "playchess.com"]
[Source "ChessBase"]
[SourceQuality "1"]
[TimeControl "5400+30"]

1. e4 {[%emt 0:00:02]} e5 {[%emt 0:00:08]} 2. Nf3 {[%emt 0:00:05]} Nc6 {[%emt 0:00:15]} 3. Bb5 {[%emt 0:00:04]} a6 {[%emt 0:00:08]} 4. Ba4 {[%emt 1:32:19]} Nf6 {[%emt 0:00:13]} 5. O-O {[%emt 0:00:00]} Be7 {[%emt 0:00:16]} 6. Re1 {[%emt 0:00:00]} b5 {[%emt 0:00:08]} 7. Bb3 {[%emt 0:00:00]} d6 {[%emt 0:00:16]} 8. d4 {[%emt 0:00:00]} Nxd4 {[%emt 0:01:10]} 9. Nxd4 {[%emt 0:00:00]} exd4 {[%emt 0:01:33]} 10. a4 {[%emt 0:00:00]} Bb7 {[%emt 0:08:18]} 11. Qxd4 {[%emt 0:00:00]} c5 {[%emt 0:00:33]} 12. Qc3 {[%emt 0:00:00]} O-O {[%emt 0:00:40]} 13. e5 {[%emt 0:00:00]} dxe5 {[%emt 0:01:00]} 14. axb5 {[%emt 0:00:00]} axb5 {[%emt 0:00:45]} 15. Rxa8 {[%emt 0:00:00]} Qxa8 {[%emt 0:00:17]} 16. Qxe5 {[%emt 0:00:00]} Re8 {[%emt 0:00:59]} 17. Nc3 {[%emt 0:00:00]} Bf8 {[%emt 0:01:07]} 18. Bxf7+ {[%emt 0:00:00]} Kxf7 {[%emt 0:00:10]} 19. Qc7+ {[%emt 0:00:00]} Kg8 {[%emt 0:00:59]} 20. Be3 {[%emt 0:00:00]} b4 {[%emt 0:02:00]} 21. Nb5 {[%emt 0:00:00]} Qa6 {[%emt 0:00:26]} 22. c4 {[%emt 0:00:00]} bxc3 {[%emt 0:00:15]} 23. Nxc3 {[%emt 0:00:00]} Bd6 {[%emt 0:00:05]} 24. Qxd6 {[%emt 0:00:00]} Qxd6 {[%emt 0:00:13]} 25. f3 {[%emt 0:00:00]} Qd3 {[%emt 0:00:15]} 26. Kf2 {[%emt 0:00:00]} Nd5 {[%emt 0:00:05]} 27. Nxd5 {[%emt 0:00:00]} Bxd5 {[%emt 0:00:08]} 28. g4 {[%emt 0:00:00]} Rf8 {[%emt 0:00:04]} 29. f4 {[%emt 0:00:00]} Rxf4+ {[%emt 0:00:04]} 30. Kg1 {[%emt 0:00:00]} Rxg4+ {[%emt 0:00:06]} 31. Kf2 {[%emt 0:00:00]} Rg2# {[%emt 0:00:06]} 0-1

[Event "FIDE WCCC Open-08 2024"]
[Site "Montesilvano"]
[Date "2024.11.26"]
[Round "11.4"]
[White "Hu, Junyan"]
[Black "Pham, Han Nam"]
[Result "1-0"]
[ECO "B36"]
[WhiteElo "1924"]
[BlackElo "1912"]
[Annotator "NA RC"]
[PlyCount "77"]
[EventDate "2024.11.18"]
[EventType "swiss"]
[EventCountry "ITA"]
[SourceTitle "playchess.com"]
[Source "ChessBase"]
[SourceQuality "1"]
[TimeControl "5400+30"]

1. e4 {[%emt 0:00:02]} c5 {[%emt 0:00:42]} 2. Nf3 {[%emt 0:00:15]} Nc6 {[%emt 0:00:19]} 3. d4 {[%emt 0:00:37]} cxd4 {[%emt 0:00:23]} 4. Nxd4 {[%emt 0:00:26]} g6 {[%emt 0:00:36]} 5. c4 {[%emt 0:00:25]} Nf6 {[%emt 0:00:08]} 6. Nc3 {[%emt 0:00:10]} Nxd4 {[%emt 0:00:52]} 7. Qxd4 {[%emt 0:00:12]} d6 {[%emt 0:00:10]} 8. Be3 {[%emt 0:02:12]} Bg7 {[%emt 0:00:18]} 9. Qd2 {[%emt 0:02:35]} O-O {[%emt 0:01:15]} 10. f3 {[%emt 0:01:56]} a5 {[%emt 0:00:31]} 11. b3 {[%emt 0:02:10]} a4 {[%emt 0:01:34]} 12. b4 {[%emt 0:00:15]} Be6 {[%emt 0:00:53]} 13. Rc1 {[%emt 0:03:14]} Nd7 {[%emt 0:03:46]} 14. Be2 {[%emt 0:01:00]} Nb6 {[%emt 0:00:51]} 15. Nb5 {[%emt 0:00:29]} Rc8 {[%emt 0:00:59]} 16. Na3 {[%emt 0:01:04]} f5 {[%emt 0:04:31]} 17. O-O {[%emt 0:02:49]} fxe4 {[%emt 0:04:56]} 18. fxe4 {[%emt 0:02:23]} Nd7 {[%emt 0:04:47]} 19. Rxf8+ {[%emt 0:06:17]} Nxf8 {[%emt 0:02:08]} 20. Rd1 {[%emt 0:07:36]} Qe8 {[%emt 0:01:57]} 21. c5 {[%emt 0:03:45]} dxc5 {[%emt 0:01:57]} 22. Bb5 {[%emt 0:01:19]} Qf7 {[%emt 0:03:32]} 23. Rf1 {[%emt 0:02:17]} Bf6 {[%emt 0:01:15]} 24. e5 {[%emt 0:01:11]} c4 {[%emt 0:04:09]} 25. Qc3 {[%emt 0:02:35]} Rd8 {[%emt 0:01:07]} 26. Bxc4 {[%emt 0:04:45]} Bxc4 {[%emt 0:00:28]} 27. Nxc4 {[%emt 0:00:04]} Rc8 {[%emt 0:01:34]} 28. Bc5 {[%emt 0:00:07]} Nd7 {[%emt 0:01:41]} 29. exf6 {[%emt 0:00:45]} Nxc5 {[%emt 0:00:41]} 30. Ne5 {[%emt 0:01:24]} Qe6 {[%emt 0:01:49]} 31. f7+ {[%emt 0:00:09]} Kg7 {[%emt 0:00:33]} 32. Ng4+ {[%emt 0:00:21]} Qf6 {[%emt 0:00:26]} 33. Nxf6 {[%emt 0:00:04]} e5 {[%emt 0:00:30]} 34. Ne8+ {[%emt 0:00:09]} Rxe8 {[%emt 0:00:09]} 35. Qxe5+ {[%emt 0:00:52]} Kh6 {[%emt 0:00:14]} 36. fxe8=Q {[%emt 0:00:13]} Ne6 {[%emt 0:00:16]} 37. Q8xe6 {[%emt 0:00:06]} a3 {[%emt 0:00:17]} 38. Q6f6 {[%emt 0:00:18]} b5 {[%emt 0:00:07]} 39. Qg7# {[%emt 0:00:09]} 1-0

[Event "FIDE WCCC Open-08 2024"]
[Site "Montesilvano"]
[Date "2024.11.26"]
[Round "11.5"]
[White "Xu, Zhihan (Samuel)"]
[Black "Kavish Palaniappan K"]
[Result "0-1"]
[ECO "C54"]
[WhiteElo "1881"]
[BlackElo "1589"]
[Annotator "NA RC"]
[PlyCount "94"]
[EventDate "2024.11.18"]
[EventType "swiss"]
[EventCountry "ITA"]
[SourceTitle "playchess.com"]
[Source "ChessBase"]
[SourceQuality "1"]
[TimeControl "5400+30"]

1. e4 {[%emt 0:00:00]} e5 {[%emt 0:00:09]} 2. Nf3 {[%emt 0:00:05]} Nc6 {[%emt 0:00:11]} 3. Bc4 {[%emt 0:00:03]} Nf6 {[%emt 0:00:10]} 4. d3 {[%emt 0:00:03]} Bc5 {[%emt 0:00:17]} 5. c3 {[%emt 0:00:05]} d6 {[%emt 0:00:23]} 6. O-O {[%emt 0:00:08]} O-O {[%emt 0:00:24]} 7. a4 {[%emt 0:00:08]} a5 {[%emt 0:00:09]} 8. h3 {[%emt 0:00:48]} h6 {[%emt 0:00:20]} 9. Be3 {[%emt 0:00:40]} Ba7 {[%emt 0:00:32]} 10. Nbd2 {[%emt 0:00:25]} Be6 {[%emt 0:00:13]} 11. Re1 {[%emt 0:03:05]} Re8 {[%emt 0:01:30]} 12. Bb3 {[%emt 0:19:30]} Bxb3 {[%emt 0:02:08]} 13. Qxb3 {[%emt 0:00:20]} Qd7 {[%emt 0:01:21]} 14. Bxa7 {[%emt 1:12:10]} Rxa7 {[%emt 0:02:09]} 15. d4 {[%emt 0:00:00]} Raa8 {[%emt 0:05:34]} 16. Rad1 {[%emt 0:00:00]} b6 {[%emt 0:04:25]} 17. Qc2 {[%emt 0:00:00]} Nh5 {[%emt 0:08:42]} 18. Nc4 {[%emt 0:00:00]} f6 {[%emt 0:03:53]} 19. Qb3 {[%emt 0:00:00]} Qf7 {[%emt 0:05:28]} 20. g3 {[%emt 0:00:00]} Kh7 {[%emt 0:02:22]} 21. Nh4 {[%emt 0:00:00]} Ne7 {[%emt 0:07:42]} 22. Re3 {[%emt 0:00:00]} g5 {[%emt 0:03:44]} 23. Ng2 {[%emt 0:00:00]} Rg8 {[%emt 0:18:46]} 24. dxe5 {[%emt 0:00:05]} fxe5 {[%emt 0:00:43]} 25. Qb5 {[%emt 0:00:31]} Raf8 {[%emt 0:00:42]} 26. Re2 {[%emt 0:00:39]} Qe6 {[%emt 0:12:27]} 27. Kh2 {[%emt 0:01:06]} Nf4 {[%emt 0:07:45]} 28. gxf4 {[%emt 0:02:11]} gxf4 {[%emt 0:00:07]} 29. Ree1 {[%emt 0:00:40]} f3 {[%emt 0:00:37]} 30. Nge3 {[%emt 0:00:13]} Rf4 {[%emt 0:00:06]} 31. Nxe5 {[%emt 0:01:58]} Rh4 {[%emt 0:03:54]} 32. N5g4 {[%emt 0:01:00]} Rgxg4 {[%emt 0:00:17]} 33. Nxg4 {[%emt 0:00:32]} Qxg4 {[%emt 0:00:06]} 34. Qf1 {[%emt 0:00:19]} Ng6 {[%emt 0:00:16]} 35. Rd3 {[%emt 0:00:41]} Nf4 {[%emt 0:00:19]} 36. Rxf3 {[%emt 0:00:30]} Qxf3 {[%emt 0:00:06]} 37. Re3 {[%emt 0:00:10]} Rxh3+ {[%emt 0:00:36]} 38. Qxh3 {[%emt 0:00:16]} Qxf2+ {[%emt 0:00:04]} 39. Kh1 {[%emt 0:00:29]} Nxh3 {[%emt 0:00:08]} 40. Rxh3 {[%emt 0:00:37]} Qe1+ {[%emt 0:00:07]} 41. Kh2 {[%emt 0:00:05]} Qxe4 {[%emt 0:00:04]} 42. b3 {[%emt 0:00:18]} Qc2+ {[%emt 0:00:06]} 43. Kg3 {[%emt 0:00:13]} Qxc3+ {[%emt 0:00:04]} 44. Kh4 {[%emt 0:00:06]} Qb4+ {[%emt 0:00:20]} 45. Kh5 {[%emt 0:00:12]} Qf4 {[%emt 0:00:18]} 46. Rg3 {[%emt 0:00:43]} Qxg3 {[%emt 0:00:08]} 47. b4 {[%emt 0:00:06]} Qg5# {[%emt 0:00:04]} 0-1

[Event "FIDE WCCC Open-08 2024"]
[Site "Montesilvano"]
[Date "2024.11.26"]
[Round "11.6"]
[White "Badescu, Matei-Andrei"]
[Black "Morozevich, Kirill Aleks"]
[Result "1/2-1/2"]
[ECO "C24"]
[WhiteElo "1829"]
[BlackElo "1484"]
[Annotator "NA RC"]
[PlyCount "106"]
[EventDate "2024.11.18"]
[EventType "swiss"]
[EventCountry "ITA"]
[SourceTitle "playchess.com"]
[Source "ChessBase"]
[SourceQuality "1"]
[TimeControl "5400+30"]

1. e4 {[%emt 0:00:04]} e5 {[%emt 0:00:13]} 2. Bc4 {[%emt 0:00:21]} Nf6 {[%emt 0:00:13]} 3. d3 {[%emt 0:00:18]} c6 {[%emt 0:00:26]} 4. Nf3 {[%emt 0:00:40]} d5 {[%emt 0:00:39]} 5. Bb3 {[%emt 0:00:38]} Bb4+ {[%emt 0:01:08]} 6. Bd2 {[%emt 0:00:33]} Bxd2+ {[%emt 0:01:56]} 7. Nbxd2 {[%emt 0:00:16]} O-O {[%emt 0:02:55]} 8. O-O {[%emt 0:00:21]} Re8 {[%emt 0:00:55]} 9. h3 {[%emt 0:01:04]} Nbd7 {[%emt 0:00:47]} 10. Re1 {[%emt 0:00:52]} Qc7 {[%emt 0:02:25]} 11. Qe2 {[%emt 0:14:35]} b5 {[%emt 0:03:58]} 12. c3 {[%emt 0:02:20]} Bb7 {[%emt 0:02:37]} 13. Bc2 {[%emt 0:02:54]} Qb6 {[%emt 1:18:48]} 14. Qf1 {[%emt 0:01:50]} Nh5 {[%emt 0:00:00]} 15. Kh1 {[%emt 0:01:24]} g6 {[%emt 0:00:00]} 16. Rad1 {[%emt 0:07:16]} Qc7 {[%emt 0:00:00]} 17. d4 {[%emt 0:08:52]} a6 {[%emt 0:00:00]} 18. exd5 {[%emt 0:01:45]} cxd5 {[%emt 0:00:00]} 19. dxe5 {[%emt 0:00:32]} Nxe5 {[%emt 0:00:00]} 20. Nxe5 {[%emt 0:00:19]} Rxe5 {[%emt 0:00:00]} 21. Rxe5 {[%emt 0:00:08]} Qxe5 {[%emt 0:00:00]} 22. Nf3 {[%emt 0:00:12]} Qf6 {[%emt 0:00:00]} 23. Nd4 {[%emt 0:01:54]} Rc8 {[%emt 0:00:00]} 24. a3 {[%emt 0:00:19]} Nf4 {[%emt 0:00:00]} 25. g3 {[%emt 0:00:41]} Ne6 {[%emt 0:00:00]} 26. Kg2 {[%emt 0:05:40]} Nc5 {[%emt 0:06:30]} 27. Qe2 {[%emt 0:03:20]} Ne6 {[%emt 0:00:00]} 28. Qf3 {[%emt 0:00:49]} Qxf3+ {[%emt 0:00:00]} 29. Kxf3 {[%emt 0:00:15]} Kg7 {[%emt 0:00:00]} 30. Kg2 {[%emt 0:10:21]} Kf6 {[%emt 0:00:00]} 31. Kf1 {[%emt 0:02:12]} Nxd4 {[%emt 0:00:00]} 32. Rxd4 {[%emt 0:00:18]} Re8 {[%emt 0:00:00]} 33. Bb3 {[%emt 0:00:22]} Ke5 {[%emt 0:00:00]} 34. Ke2 {[%emt 0:00:44]} Kd6+ {[%emt 0:00:00]} 35. Kd2 {[%emt 0:00:29]} g5 {[%emt 0:00:00]} 36. h4 {[%emt 0:01:49]} h6 {[%emt 0:00:00]} 37. Bd1 {[%emt 0:04:19]} Re4 {[%emt 0:00:00]} 38. hxg5 {[%emt 0:03:12]} Rxd4+ {[%emt 0:00:00]} 39. cxd4 {[%emt 0:00:10]} hxg5 {[%emt 0:00:00]} 40. b4 {[%emt 0:00:47]} Bc6 {[%emt 0:00:00]} 41. Bg4 {[%emt 0:00:16]} Bd7 {[%emt 0:00:00]} 42. Bh5 {[%emt 0:00:23]} Ke7 {[%emt 0:00:00]} 43. Ke3 {[%emt 0:00:12]} f5 {[%emt 0:00:00]} 44. Be2 {[%emt 0:01:13]} Be8 {[%emt 0:00:00]} 45. Bd3 {[%emt 0:00:57]} Ke6 {[%emt 0:00:00]} 46. Kf3 {[%emt 0:00:53]} Bh5+ {[%emt 0:00:00]} 47. Kg2 {[%emt 0:00:45]} Be8 {[%emt 0:00:00]} 48. Bc2 {[%emt 0:01:18]} Kf6 {[%emt 0:00:00]} 49. Bb3 {[%emt 0:00:09]} Ke6 {[%emt 0:00:00]} 50. Kh3 {[%emt 0:00:28]} Bc6 {[%emt 0:00:00]} 51. f4 {[%emt 0:00:37]} Kf6 {[%emt 0:00:00]} 52. Bc2 {[%emt 0:01:04]} Bd7 {[%emt 0:00:00]} 53. Bb3 {[%emt 0:00:52]} Bc6 {[%emt 0:00:00]} 1/2-1/2

[Event "FIDE WCCC Open-08 2024"]
[Site "Montesilvano"]
[Date "2024.11.26"]
[Round "11.7"]
[White "Ulan, Rizat"]
[Black "Mani, Sarbartho"]
[Result "1-0"]
[ECO "C00"]
[WhiteElo "1783"]
[BlackElo "1824"]
[Annotator "NA RC"]
[PlyCount "83"]
[EventDate "2024.11.18"]
[EventType "swiss"]
[EventCountry "ITA"]
[SourceTitle "playchess.com"]
[Source "ChessBase"]
[SourceQuality "1"]
[TimeControl "5400+30"]

1. e4 {[%emt 0:00:05]} e6 {[%emt 0:00:17]} 2. Nf3 {[%emt 0:00:06]} d5 {[%emt 0:02:05]} 3. Nc3 {[%emt 0:00:04]} d4 {[%emt 0:00:19]} 4. Ne2 {[%emt 0:00:05]} c5 {[%emt 0:00:12]} 5. c3 {[%emt 0:00:05]} Nc6 {[%emt 0:00:11]} 6. cxd4 {[%emt 0:00:10]} cxd4 {[%emt 0:00:07]} 7. Qa4 {[%emt 0:00:05]} Bc5 {[%emt 0:00:29]} 8. b4 {[%emt 0:00:08]} Bb6 {[%emt 0:09:07]} 9. b5 {[%emt 0:00:04]} Nce7 {[%emt 0:00:07]} 10. Nexd4 {[%emt 0:01:32]} Nf6 {[%emt 0:00:21]} 11. d3 {[%emt 0:00:16]} e5 {[%emt 0:01:35]} 12. Nb3 {[%emt 0:04:30]} Be6 {[%emt 0:01:45]} 13. Be2 {[%emt 0:00:25]} O-O {[%emt 0:00:14]} 14. O-O {[%emt 0:00:11]} Nd7 {[%emt 0:03:22]} 15. Bb2 {[%emt 0:01:54]} Ng6 {[%emt 0:03:11]} 16. d4 {[%emt 0:06:02]} Nf4 {[%emt 0:01:21]} 17. Bc4 {[%emt 0:00:10]} Bxc4 {[%emt 0:00:16]} 18. Qxc4 {[%emt 0:00:03]} Rc8 {[%emt 0:00:04]} 19. Qb4 {[%emt 0:01:20]} Rc2 {[%emt 0:02:50]} 20. Ba3 {[%emt 0:00:19]} Re8 {[%emt 0:00:50]} 21. g3 {[%emt 0:13:10]} Ne2+ {[%emt 0:04:31]} 22. Kg2 {[%emt 0:00:49]} exd4 {[%emt 0:22:07]} 23. Nbxd4 {[%emt 0:00:51]} Nxd4 {[%emt 0:00:13]} 24. Nxd4 {[%emt 0:00:05]} Rxe4 {[%emt 0:00:02]} 25. Qb1 {[%emt 0:00:37]} Rxd4 {[%emt 0:04:09]} 26. Qxc2 {[%emt 0:00:41]} Ne5 {[%emt 0:01:37]} 27. Qb3 {[%emt 0:00:12]} Nc4 {[%emt 0:01:46]} 28. Bc1 {[%emt 0:08:26]} Qd5+ {[%emt 0:01:46]} 29. Qf3 {[%emt 0:00:15]} Qd7 {[%emt 0:00:47]} 30. Be3 {[%emt 0:01:47]} Rd3 {[%emt 0:21:11]} 31. Rad1 {[%emt 0:00:09]} h6 {[%emt 0:02:46]} 32. Bxb6 {[%emt 0:00:37]} Nd2 {[%emt 0:05:02]} 33. Rxd2 {[%emt 0:00:08]} Rxd2 {[%emt 0:00:05]} 34. Bxa7 {[%emt 0:00:23]} Rxa2 {[%emt 0:00:05]} 35. b6 {[%emt 0:00:36]} Rd2 {[%emt 0:00:12]} 36. Bb8 {[%emt 0:00:20]} Rd3 {[%emt 0:00:05]} 37. Qe4 {[%emt 0:00:05]} Rd4 {[%emt 0:00:04]} 38. Qc2 {[%emt 0:00:30]} Rd2 {[%emt 0:00:11]} 39. Qc5 {[%emt 0:00:17]} Rd5 {[%emt 0:00:30]} 40. Qc7 {[%emt 0:00:45]} Qg4 {[%emt 0:00:08]} 41. Qxb7 {[%emt 0:00:33]} Rh5 {[%emt 0:00:11]} 42. Kg1 {[%emt 0:00:08]} 1-0